bitfinex-derivatives/quotes_BTCF0:USTF0_20240929
["timestamp","ask_amount","ask_price","bid_price","bid_amount"]
[1727594722351,0.0504,65528.0,65524.0,0.12]
[1727594722562,0.018,65528.0,65527.0,0.12]
[1727594723547,0.018,65528.0,65527.0,0.32197814]
[1727594723851,0.018,65528.0,65527.0,0.32954912]
[1727594724046,0.018,65528.0,65527.0,0.29137814]
[1727594724246,0.018,65528.0,65527.0,0.17137814]
[1727594724448,0.018,65528.0,65527.0,0.53217814]
[1727594725457,0.013,65528.0,65527.0,0.53217814]
[1727594725960,0.013,65528.0,65527.0,0.17137814]
[1727594726658,0.01,65528.0,65527.0,0.17901056]
[1727594726858,0.015,65528.0,65527.0,0.17901056]
[1727594727061,0.015,65528.0,65527.0,0.17137814]
[1727594728255,0.018,65528.0,65527.0,0.17137814]
[1727594731351,0.018,65528.0,65526.0,0.16489549]
[1727594731352,0.0512,65528.0,65526.0,0.16489549]
[1727594731557,0.0512,65528.0,65523.0,0.3608]
[1727594731957,0.0512,65528.0,65527.0,0.16935709]
[1727594732360,0.0512,65528.0,65496.0,0.02732175]
[1727594732361,0.0512,65528.0,65523.0,0.3608]
[1727594732560,0.0512,65528.0,65527.0,0.16463123]
[1727594732761,0.076292,65527.0,65526.0,0.16463123]
[1727594732967,0.146292,65527.0,65524.0,0.16463123]
[1727594733271,0.146292,65527.0,65526.0,0.16463123]
[1727594733564,0.146292,65527.0,65524.0,0.16463123]
[1727594733761,0.146292,65527.0,65523.0,0.40638524]
[1727594733962,0.146292,65527.0,65524.0,0.21116315]
[1727594734168,0.146292,65527.0,65524.0,0.16557791]
[1727594734562,0.146292,65527.0,65525.0,0.04558524]
[1727594734982,0.146292,65527.0,65526.0,0.17445191]
[1727594735363,0.147292,65527.0,65526.0,0.17445191]
[1727594735564,0.147292,65527.0,65526.0,0.22003715]
[1727594735967,0.147292,65527.0,65526.0,0.04558524]
[1727594736267,0.147292,65527.0,65526.0,0.17349314]
[1727594736460,0.076296,65524.0,65523.0,0.3608]
[1727594736660,0.176296,65524.0,65523.0,0.3608]
[1727594737061,0.176296,65524.0,65523.0,0.40653058]
[1727594737464,0.176296,65524.0,65523.0,0.3608]
[1727594739156,0.177296,65524.0,65523.0,0.3608]
[1727594740470,0.101,65524.0,65523.0,0.42177391]
[1727594741063,0.101,65524.0,65523.0,0.3618]
[1727594741368,0.101,65524.0,65523.0,0.3947]
[1727594741871,0.101,65524.0,65523.0,0.56595114]
[1727594743775,0.001,65524.0,65523.0,0.64216883]
[1727594744079,0.001,65524.0,65523.0,0.65824713]
[1727594744869,0.011,65524.0,65523.0,0.65824713]
[1727594745059,0.00228977,65532.0,65523.0,0.65824713]
[1727594745264,0.00228977,65532.0,65531.0,0.18]
[1727594745265,0.09,65532.0,65531.0,0.18]
[1727594745471,0.09,65532.0,65531.0,0.2449]
[1727594745669,0.079878,65540.0,65536.0,0.076282]
[1727594745670,0.0036,65540.0,65536.0,0.076282]
[1727594745870,0.0036,65540.0,65539.0,0.18]
[1727594745871,0.1,65540.0,65539.0,0.18]
[1727594747475,0.1,65540.0,65539.0,0.22572599]
[1727594747668,0.114,65540.0,65539.0,0.22672599]
[1727594747873,0.128,65540.0,65539.0,0.22772599]
[1727594748566,0.128,65540.0,65539.0,0.182]
[1727594748961,0.128,65540.0,65539.0,0.002]
[1727594751569,0.1895,65540.0,65539.0,0.002]
[1727594752987,0.128,65540.0,65539.0,0.002]
[1727594754077,0.4888,65540.0,65539.0,0.002]
[1727594755574,0.128,65540.0,65539.0,0.002]
[1727594755774,0.4888,65540.0,65539.0,0.002]
[1727594758384,0.565077,65540.0,65539.0,0.002]
[1727594761699,0.204277,65540.0,65539.0,0.002]
[1727594774200,0.324277,65540.0,65539.0,0.002]
[1727594785402,0.324277,65540.0,65539.0,0.04772599]
[1727594787522,0.324277,65540.0,65539.0,0.002]
[1727594788511,0.324277,65540.0,65539.0,0.04772599]
[1727594789705,0.324277,65540.0,65539.0,0.002]
[1727594791017,0.324277,65540.0,65539.0,0.04779224]
[1727594793820,0.204277,65540.0,65539.0,0.06299478]
[1727594794016,0.204277,65540.0,65539.0,0.002]
[1727594797527,0.204277,65540.0,65539.0,0.06303858]
[1727594798122,0.204277,65540.0,65539.0,0.002]
[1727594799225,0.204277,65540.0,65539.0,0.03013501]
[1727594820239,0.204277,65540.0,65539.0,0.23504288]
[1727594820433,0.204277,65540.0,65539.0,0.18926607]
[1727594821635,0.204277,65540.0,65539.0,0.25030318]
[1727594822637,0.204277,65540.0,65539.0,0.18926607]
[1727594841378,0.204277,65540.0,65539.0,0.03013501]
[1727594844580,0.204277,65540.0,65539.0,0.07591697]
[1727594850178,0.204277,65540.0,65539.0,0.03013501]
[1727594858479,0.204277,65540.0,65539.0,0.07592754]
[1727594858680,0.324277,65540.0,65539.0,0.07592754]
[1727594860485,0.324277,65540.0,65539.0,0.03013501]
[1727594866183,0.204277,65540.0,65539.0,0.03013501]
[1727594867599,0.204277,65540.0,65539.0,0.07592638]
[1727594868606,0.204277,65540.0,65539.0,0.03013501]
[1727594874514,0.204277,65540.0,65539.0,0.09117212]
[1727594876307,0.204277,65540.0,65539.0,0.03013501]
[1727594876821,0.128,65540.0,65539.0,0.45884379]
[1727594877006,0.128,65540.0,65539.0,0.39780668]
[1727594878406,0.128,65540.0,65539.0,0.39680668]
[1727594878407,0.114,65540.0,65539.0,0.39680668]
[1727594878606,0.123,65540.0,65539.0,0.39780668]
[1727594878813,0.123,65540.0,65539.0,0.27780668]
[1727594879012,0.12,65540.0,65539.0,0.39780668]
[1727594880513,0.12,65540.0,65539.0,0.27780668]
[1727594880709,0.24,65540.0,65539.0,0.20152768]
[1727594880911,0.24,65540.0,65539.0,0.26254811]
[1727594881516,0.24,65540.0,65539.0,0.26254627]
[1727594882112,0.24,65540.0,65539.0,0.20152768]
[1727594882713,0.24,65540.0,65539.0,0.26254586]
[1727594884212,0.12,65540.0,65539.0,0.26254586]
[1727594886911,0.12,65540.0,65539.0,0.20152768]
[1727594893724,0.12,65540.0,65539.0,0.56232768]
[1727594894313,0.12,65540.0,65539.0,0.20152768]
[1727594894516,0.12,65540.0,65539.0,0.56232768]
[1727594896019,0.12,65540.0,65539.0,0.20152768]
[1727594896225,0.12,65540.0,65539.0,0.63860668]
[1727594903220,0.12,65540.0,65539.0,0.27780668]
[1727594915637,0.196277,65540.0,65539.0,0.20152768]
[1727594924052,0.196277,65540.0,65539.0,0.24730892]
[1727594924641,0.196277,65540.0,65539.0,0.20152768]
[1727594925451,0.196277,65540.0,65539.0,0.247309]
[1727594925648,0.196277,65540.0,65539.0,0.20152768]
[1727594930150,0.196277,65540.0,65539.0,0.26257049]
[1727594933059,0.196277,65540.0,65539.0,0.38257049]
[1727594933255,0.316277,65540.0,65539.0,0.20152768]
[1727594933563,0.316277,65540.0,65539.0,0.24731238]
[1727594934259,0.316277,65540.0,65539.0,0.20152768]
[1727594934666,0.196277,65540.0,65539.0,0.20152768]
[1727594934863,0.316277,65540.0,65539.0,0.20152768]
[1727594936457,0.196277,65540.0,65539.0,0.20152768]
[1727594938256,0.557077,65540.0,65539.0,0.20152768]
[1727594940266,0.196277,65540.0,65539.0,0.20152768]
[1727594940471,0.557077,65540.0,65539.0,0.20152768]
[1727594941060,0.196277,65540.0,65539.0,0.20152768]
[1727594941672,0.557077,65540.0,65539.0,0.20152768]
[1727594942665,0.196277,65540.0,65539.0,0.20152768]
[1727594942865,0.557077,65540.0,65539.0,0.20152768]
[1727594943068,0.557077,65540.0,65539.0,0.03013501]
[1727594949264,0.557077,65540.0,65539.0,0.23898231]
[1727594949465,0.557077,65540.0,65539.0,0.19319761]
[1727594949670,0.4808,65540.0,65539.0,0.25424042]
[1727594949979,0.4808,65540.0,65539.0,0.19319761]
[1727594950977,0.4808,65540.0,65539.0,0.31319761]
[1727594951568,0.12,65540.0,65539.0,0.31319761]
[1727594951971,0.12,65540.0,65539.0,0.38944108]
[1727594952173,0.12,65540.0,65539.0,0.31319761]
[1727594958281,0.12,65540.0,65539.0,0.37416307]
[1727594958677,0.0036,65548.0,65547.0,0.076269]
[1727594958980,0.36308916,65554.0,65550.0,0.076265]
[1727594959175,0.47308916,65554.0,65553.0,0.12]
[1727594961983,0.47808916,65554.0,65553.0,0.12]
[1727594963375,0.48108916,65554.0,65553.0,0.12]
[1727594964577,0.48108916,65554.0,65553.0,0.29214854]
[1727594966283,0.55235016,65554.0,65553.0,0.29214854]
[1727594967186,0.54935016,65554.0,65553.0,0.29214854]
[1727594967384,0.54935016,65554.0,65553.0,0.29314854]
[1727594968289,0.54935016,65554.0,65553.0,0.29514854]
[1727594969086,0.54935016,65554.0,65553.0,0.29614854]
[1727594970784,0.54935016,65554.0,65553.0,0.29314854]
[1727594970984,0.54935016,65554.0,65553.0,0.29414854]
[1727594971981,0.54935016,65554.0,65553.0,0.29614854]
[1727594975600,0.18855016,65554.0,65553.0,0.29614854]
[1727594978889,0.11228916,65554.0,65553.0,0.29614854]
[1727594980196,0.11228916,65554.0,65553.0,0.25241054]
[1727594980398,0.11228916,65554.0,65553.0,0.37241054]
[1727594988194,0.11,65554.0,65553.0,0.43337281]
[1727594989600,0.11,65554.0,65553.0,0.37241054]
[1727594990899,0.11,65554.0,65553.0,0.25241054]
[1727594991209,0.11,65554.0,65553.0,0.37241054]
[1727594993502,0.11,65554.0,65553.0,0.41816473]
[1727595000896,0.11,65554.0,65553.0,0.43337281]
[1727595002016,0.11,65554.0,65553.0,0.37241054]
[1727595006917,0.11,65554.0,65553.0,0.73321054]
[1727595009724,0.11,65554.0,65553.0,0.37241054]
[1727595009921,0.11,65554.0,65553.0,0.73321054]
[1727595011117,0.11,65554.0,65553.0,0.37241054]
[1727595011316,0.11,65554.0,65553.0,0.73321054]
[1727595012024,0.11,65554.0,65553.0,0.37241054]
[1727595012223,0.11,65554.0,65553.0,0.25241054]
[1727595012434,0.11,65554.0,65553.0,0.61321054]
[1727595012615,0.11,65554.0,65553.0,0.73321054]
[1727595013424,0.0036,65560.0,65559.0,0.196255]
[1727595013618,0.0036,65565.0,65563.0,0.076251]
[1727595013931,0.00228867,65568.0,65565.0,0.076248]
[1727595014227,0.09228867,65568.0,65567.0,0.12]
[1727595014717,0.09228867,65568.0,65567.0,0.28640183]
[1727595015811,0.09228867,65568.0,65567.0,0.33215645]
[1727595016023,0.09628867,65568.0,65567.0,0.33315645]
[1727595016231,0.09628867,65568.0,65567.0,0.28740183]
[1727595016531,0.10428867,65568.0,65567.0,0.28840183]
[1727595020925,0.18053367,65568.0,65567.0,0.28840183]
[1727595021131,0.18053367,65568.0,65567.0,0.31592056]
[1727595042436,0.18053367,65568.0,65567.0,0.02951873]
[1727595042951,0.18053367,65568.0,65565.0,0.04575462]
[1727595042952,0.076247,65566.0,65565.0,0.04575462]
[1727595043242,0.076247,65566.0,65560.0,0.09731069]
[1727595043243,0.076249,65564.0,65562.0,0.04575462]
[1727595043440,0.0326,65563.0,65562.0,0.2201546]
[1727595043637,0.1326,65563.0,65562.0,0.04575462]
[1727595044249,0.076252,65562.0,65561.0,0.04575462]
[1727595044541,0.176252,65562.0,65561.0,0.04575462]
[1727595044735,0.296252,65562.0,65561.0,0.21125695]
[1727595044942,0.176252,65562.0,65561.0,0.16550233]
[1727595045142,0.176252,65562.0,65561.0,0.21125096]
[1727595046035,0.176252,65562.0,65561.0,0.16650233]
[1727595046036,0.183252,65562.0,65561.0,0.16650233]
[1727595046744,0.189252,65562.0,65561.0,0.16650233]
[1727595049942,0.189252,65562.0,65561.0,0.19690233]
[1727595071263,0.189252,65562.0,65561.0,0.16650233]
[1727595071472,0.309252,65562.0,65561.0,0.16650233]
[1727595071660,0.309252,65562.0,65561.0,0.001]
[1727595071967,0.35738185,65562.0,65561.0,0.001]
[1727595072357,0.23738185,65562.0,65561.0,0.001]
[1727595073461,0.23765094,65562.0,65561.0,0.001]
[1727595076165,0.189252,65562.0,65561.0,0.001]
[1727595076760,0.550052,65562.0,65561.0,0.001]
[1727595079775,0.550052,65562.0,65556.0,0.0036]
[1727595079776,0.076256,65558.0,65556.0,0.0036]
[1727595079954,0.07626,65555.0,65552.0,0.04932435]
[1727595080159,0.076265,65551.0,65549.0,0.04932435]
[1727595080466,0.076269,65547.0,65546.0,0.04572435]
[1727595080762,0.306269,65547.0,65546.0,0.04572435]
[1727595080964,0.306269,65547.0,65545.0,0.04572435]
[1727595081263,0.076272,65545.0,65542.0,0.04572435]
[1727595081468,0.076272,65545.0,65541.0,0.1824]
[1727595081469,0.12,65544.0,65541.0,0.1506]
[1727595081766,0.1,65544.0,65542.0,0.16490653]
[1727595083053,0.101,65544.0,65542.0,0.16490653]
[1727595084064,0.101,65544.0,65542.0,0.17890653]
[1727595084467,0.177273,65544.0,65542.0,0.17890653]
[1727595085855,0.176273,65544.0,65542.0,0.17890653]
[1727595086063,0.177273,65544.0,65542.0,0.19090653]
[1727595092170,0.177273,65544.0,65543.0,0.12]
[1727595093465,0.176273,65544.0,65543.0,0.12]
[1727595093672,0.177273,65544.0,65543.0,0.131]
[1727595095368,0.177273,65544.0,65543.0,0.144]
[1727595098164,0.177273,65544.0,65543.0,0.024]
[1727595107578,0.101,65544.0,65543.0,0.144]
[1727595107764,0.101,65544.0,65543.0,0.30779505]
[1727595109178,0.101,65544.0,65543.0,0.38406905]
[1727595109768,0.101,65544.0,65543.0,0.41586905]
[1727595119889,0.0036,65549.0,65548.0,0.076268]
[1727595120083,0.02,65549.0,65548.0,0.64732489]
[1727595120385,0.0036,65557.0,65555.0,0.07626]
[1727595120591,0.11,65557.0,65556.0,0.4808]
[1727595120783,0.11,65557.0,65556.0,0.64043985]
[1727595121183,0.11,65557.0,65556.0,0.68616672]
[1727595121384,0.11,65557.0,65556.0,0.64043985]
[1727595123097,0.112,65557.0,65556.0,0.64043985]
[1727595125293,0.112,65557.0,65556.0,0.66759157]
[1727595125692,0.112,65557.0,65556.0,0.74385057]
[1727595126586,0.002,65557.0,65556.0,0.74385057]
[1727595126997,0.002,65557.0,65556.0,0.78957744]
[1727595127392,0.002,65557.0,65556.0,0.74385057]
[1727595128291,0.002,65557.0,65556.0,0.78946961]
[1727595129391,0.012,65557.0,65556.0,0.78946961]
[1727595130300,0.012,65557.0,65556.0,0.74385057]
[1727595145297,0.012,65557.0,65556.0,0.80467407]
[1727595146198,0.012,65557.0,65556.0,0.74385057]
[1727595147801,0.002,65557.0,65556.0,0.74385057]
[1727595148410,0.012,65557.0,65556.0,0.74385057]
[1727595149401,0.012,65557.0,65556.0,0.8335349]
[1727595150100,0.012,65557.0,65556.0,0.83354107]
[1727595150601,0.012,65557.0,65556.0,0.71354107]
[1727595150907,0.012,65557.0,65556.0,0.83354107]
[1727595157711,0.012,65557.0,65556.0,0.74385057]
[1727595157897,0.012,65557.0,65556.0,0.83358873]
[1727595158399,0.0036,65565.0,65564.0,0.076249]
[1727595158602,0.0666,65576.0,65570.0,0.076242]
[1727595158812,0.0666,65576.0,65575.0,0.16576208]
[1727595158813,0.173,65576.0,65575.0,0.16576208]
[1727595159116,0.173,65576.0,65575.0,0.12]
[1727595159998,0.176,65576.0,65575.0,0.29377372]
[1727595162116,0.181,65576.0,65575.0,0.29477372]
[1727595163124,0.118,65576.0,65575.0,0.29477372]
[1727595163408,0.115,65576.0,65575.0,0.29477372]
[1727595163606,0.12,65576.0,65575.0,0.3415358]
[1727595163811,0.12,65576.0,65575.0,0.29577372]
[1727595164011,0.12,65576.0,65575.0,0.35678983]
[1727595164205,0.12,65576.0,65575.0,0.29577372]
[1727595164709,0.01,65576.0,65575.0,0.29577372]
[1727595164915,0.02,65576.0,65575.0,0.29577372]
[1727595166516,0.02,65576.0,65575.0,0.3413735]
[1727595166715,0.01,65576.0,65575.0,0.3413735]
[1727595168204,0.01,65576.0,65575.0,0.29577372]
[1727595168616,0.01,65576.0,65575.0,1.01737372]
[1727595180026,0.002288,65590.0,65575.0,1.01737372]
[1727595180221,0.112288,65590.0,65587.0,0.196223]
[1727595180622,0.112288,65590.0,65588.0,0.17385102]
[1727595181421,0.114288,65590.0,65588.0,0.17385102]
[1727595184128,0.112288,65590.0,65588.0,0.17485102]
[1727595184926,0.112288,65590.0,65588.0,0.17585102]
[1727595185128,0.112288,65590.0,65589.0,0.07622]
[1727595189039,0.114288,65590.0,65589.0,0.07722]
[1727595189527,0.114288,65590.0,65589.0,0.07822]
[1727595189919,0.0036,65598.0,65596.0,0.076212]
[1727595190122,0.09,65598.0,65597.0,0.4808]
[1727595190324,0.09,65598.0,65597.0,0.65128761]
[1727595194133,0.09,65598.0,65597.0,0.65228761]
[1727595196954,0.09,65598.0,65597.0,0.65328761]
[1727595197259,0.09,65598.0,65597.0,0.68037569]
[1727595198557,0.09,65598.0,65597.0,0.75658669]
[1727595202053,0.09,65598.0,65597.0,0.63658669]
[1727595202256,0.09,65598.0,65597.0,0.75658669]
[1727595210358,0.09,65598.0,65597.0,0.39578669]
[1727595217272,0.09,65598.0,65597.0,0.27578669]
[1727595217474,0.09,65598.0,65597.0,0.39578669]
[1727595219271,0.1415973,65598.0,65597.0,0.39578669]
[1727595219575,0.09,65598.0,65597.0,0.39578669]
[1727595221861,0.09,65598.0,65597.0,0.27578669]
[1727595222068,0.09,65598.0,65597.0,0.39578669]
[1727595224979,0.16621,65598.0,65597.0,0.19957569]
[1727595225175,0.52701,65598.0,65597.0,0.02908808]
[1727595226480,0.57852391,65598.0,65597.0,0.02908808]
[1727595228174,0.21772391,65598.0,65597.0,0.14908808]
[1727595229385,0.16621,65598.0,65597.0,0.14908808]
[1727595241283,0.16621,65598.0,65597.0,0.122]
[1727595241484,0.21780523,65598.0,65597.0,0.122]
[1727595249588,0.16621,65598.0,65597.0,0.122]
[1727595256504,0.21782604,65598.0,65597.0,0.122]
[1727595263504,0.16621,65598.0,65597.0,0.122]
[1727595278600,0.21786557,65598.0,65597.0,0.122]
[1727595280106,0.16621,65598.0,65597.0,0.122]
[1727595280502,0.33784934,65598.0,65597.0,0.002]
[1727595281106,0.076215,65594.0,65593.0,0.0036]
[1727595281313,0.076217,65592.0,65591.0,0.3608]
[1727595281517,0.166217,65592.0,65591.0,0.3608]
[1727595281810,0.166217,65592.0,65591.0,0.52467736]
[1727595282814,0.166217,65592.0,65591.0,0.16387736]
[1727595283117,0.166217,65592.0,65591.0,0.02681782]
[1727595283411,0.076218,65591.0,65589.0,0.16919978]
[1727595283715,0.186218,65591.0,65590.0,0.16691072]
[1727595284013,0.186218,65591.0,65589.0,0.16919978]
[1727595284014,0.076219,65590.0,65589.0,0.04919978]
[1727595284213,0.076219,65590.0,65585.0,0.06461611]
[1727595284214,0.1,65590.0,65585.0,0.1236]
[1727595284512,0.1,65590.0,65586.0,0.15975969]
[1727595284915,0.07622,65589.0,65588.0,0.12]
[1727595285109,0.17622,65589.0,65588.0,0.12]
[1727595286312,0.17822,65589.0,65588.0,0.12]
[1727595290120,0.54002,65589.0,65588.0,0.12]
[1727595294617,0.17922,65589.0,65588.0,0.12]
[1727595307138,0.076224,65586.0,65585.0,0.15161629]
[1727595307433,0.186224,65586.0,65585.0,0.14801629]
[1727595308337,0.186224,65586.0,65585.0,0.02801629]
[1727595308528,0.076225,65585.0,65584.0,0.04559978]
[1727595308724,0.1,65585.0,65582.0,0.36852103]
[1727595308932,0.076227,65584.0,65582.0,0.3608]
[1727595309129,0.076227,65583.0,65582.0,0.3608]
[1727595309335,0.176227,65583.0,65582.0,0.40639978]
[1727595309636,0.176227,65583.0,65582.0,0.3608]
[1727595313026,0.176227,65583.0,65582.0,0.38876896]
[1727595314034,0.076228,65582.0,65581.0,0.0036]
[1727595314332,0.076232,65579.0,65578.0,0.0312]
[1727595314633,0.186232,65579.0,65578.0,0.0312]
[1727595315528,0.547032,65579.0,65577.0,0.0036]
[1727595316637,0.547032,65579.0,65578.0,0.016]
[1727595318825,0.547032,65579.0,65578.0,0.009]
[1727595319327,0.547032,65579.0,65577.0,0.0116]
[1727595319328,0.547032,65579.0,65577.0,0.0216]
[1727595319826,0.623264,65579.0,65577.0,0.0216]
[1727595320026,1.56108,65579.0,65561.0,0.04559978]
[1727595320229,0.196253,65562.0,65560.0,0.0328]
[1727595320425,0.306253,65562.0,65560.0,0.19539725]
[1727595320625,0.306253,65562.0,65560.0,0.0328]
[1727595320925,0.306253,65562.0,65561.0,0.16259725]
[1727595321329,0.667053,65562.0,65561.0,0.16259725]
[1727595323038,0.667053,65562.0,65560.0,0.0328]
[1727595324135,0.667053,65562.0,65557.0,0.0642]
[1727595324136,0.668053,65562.0,65561.0,0.005]
[1727595324331,0.669053,65562.0,65561.0,0.019]
[1727595326336,0.669053,65562.0,65561.0,0.014]
[1727595326842,0.669053,65562.0,65560.0,0.012]
[1727595326843,0.669053,65562.0,65560.0,0.019]
[1727595327549,0.668053,65562.0,65561.0,0.004]
[1727595327744,0.668053,65562.0,65561.0,0.01]
[1727595328337,0.667053,65562.0,65561.0,0.004]
[1727595328536,0.668053,65562.0,65561.0,0.004]
[1727595330543,0.076253,65561.0,65560.0,0.012]
[1727595330743,0.186253,65561.0,65560.0,0.012]
[1727595331341,0.186253,65561.0,65560.0,0.007]
[1727595331644,0.076256,65558.0,65557.0,0.05897073]
[1727595331836,0.306256,65558.0,65557.0,0.05897073]
[1727595333544,0.307256,65558.0,65557.0,0.06997073]
[1727595334845,0.307256,65558.0,65557.0,0.011]
[1727595335037,0.307256,65558.0,65557.0,0.019]
[1727595335038,0.308256,65558.0,65557.0,0.019]
[1727595336245,0.384512,65558.0,65557.0,0.019]
[1727595336443,0.076263,65552.0,65551.0,0.0036]
[1727595336649,0.4708,65552.0,65544.0,0.0036]
[1727595336944,0.12,65546.0,65544.0,0.0036]
[1727595337146,0.23,65546.0,65543.0,0.28897001]
[1727595337352,0.076272,65545.0,65543.0,0.28897001]
[1727595337548,0.166272,65545.0,65543.0,0.28897001]
[1727595337854,0.09,65545.0,65539.0,0.0305]
[1727595338052,0.12,65541.0,65539.0,0.0305]
[1727595338351,0.23,65541.0,65539.0,0.0305]
[1727595338549,0.3608,65540.0,65539.0,0.0305]
[1727595338743,0.4708,65540.0,65539.0,0.0305]
[1727595338951,0.4708,65540.0,65539.0,0.05780637]
[1727595339155,0.065284,65535.0,65533.0,0.0036]
[1727595339344,0.12,65534.0,65529.0,0.0321]
[1727595339652,0.04,65534.0,65530.0,0.16810823]
[1727595340644,0.036,65534.0,65530.0,0.16810823]
[1727595341148,0.036,65534.0,65532.0,0.12]
[1727595342256,0.036,65534.0,65532.0,0.196286]
[1727595342450,0.036,65534.0,65533.0,0.3608]
[1727595343243,0.037,65534.0,65533.0,0.3608]
[1727595343640,0.037,65534.0,65532.0,0.196286]
[1727595343840,0.037,65534.0,65533.0,0.3608]
[1727595344063,0.001,65534.0,65533.0,0.5289205]
[1727595345255,0.002,65534.0,65533.0,0.5289205]
[1727595346054,0.001,65534.0,65533.0,0.5289205]
[1727595346245,0.002,65534.0,65533.0,0.5289205]
[1727595346642,0.012,65534.0,65533.0,0.5289205]
[1727595352952,0.012,65534.0,65533.0,0.6052055]
[1727595353759,0.012,65534.0,65533.0,0.65080528]
[1727595354147,0.012,65534.0,65533.0,0.6052055]
[1727595356165,0.012,65534.0,65533.0,0.65080528]
[1727595359169,0.012,65534.0,65533.0,0.6052055]
[1727595361062,0.012,65534.0,65533.0,0.65086083]
[1727595361271,0.012,65534.0,65533.0,0.6052055]
[1727595363364,0.012,65534.0,65533.0,0.66622161]
[1727595364269,0.012,65534.0,65533.0,0.6052055]
[1727595366173,0.012,65534.0,65533.0,0.77193351]
[1727595367271,0.012,65534.0,65533.0,0.69566337]
[1727595368886,0.012,65534.0,65533.0,0.68148925]
[1727595369076,0.012,65534.0,65533.0,0.69569688]
[1727595371789,0.012,65534.0,65533.0,0.6052055]
[1727595371989,0.0036,65539.0,65538.0,0.07628]
[1727595372193,0.08,65539.0,65538.0,0.12]
[1727595372494,0.08,65539.0,65538.0,0.29113936]
[1727595372900,0.08,65539.0,65538.0,0.53397605]
[1727595373597,0.081,65539.0,65538.0,0.53396139]
[1727595373795,0.082,65539.0,65538.0,0.53696139]
[1727595374301,0.082,65539.0,65538.0,0.44669202]
[1727595374899,0.082,65539.0,65538.0,0.53692669]
[1727595375090,0.002,65539.0,65538.0,0.53692669]
[1727595376000,0.002,65539.0,65538.0,0.46065403]
[1727595377099,0.002,65539.0,65538.0,0.48269094]
[1727595377900,0.002,65539.0,65538.0,0.90479094]
[1727595378303,0.002,65539.0,65538.0,0.90468148]
[1727595380304,0.002,65539.0,65538.0,0.98086907]
[1727595381094,0.002,65539.0,65538.0,0.90468148]
[1727595381798,0.0036,65544.0,65543.0,0.076274]
[1727595382001,0.0036,65549.0,65543.0,0.64675727]
[1727595382295,0.1136,65549.0,65547.0,0.0609275]
[1727595382501,0.11,65549.0,65547.0,0.0609275]
[1727595382706,0.11,65549.0,65548.0,0.15871261]
[1727595383104,0.11,65549.0,65548.0,0.23498061]
[1727595383902,0.11,65549.0,65548.0,0.28065348]
[1727595384808,0.11,65549.0,65548.0,0.23498061]
[1727595385510,0.11,65549.0,65548.0,0.23898061]
[1727595385511,0.111,65549.0,65548.0,0.23898061]
[1727595386105,0.112,65549.0,65548.0,0.23898061]
[1727595388615,0.112,65549.0,65548.0,0.59978061]
[1727595390912,0.112,65549.0,65548.0,0.23898061]
[1727595391218,0.112,65549.0,65548.0,0.59978061]
[1727595391517,0.112,65549.0,65548.0,0.62138109]
[1727595392015,0.112,65549.0,65548.0,0.26058109]
[1727595392217,0.112,65549.0,65548.0,0.62138109]
[1727595393410,0.112,65549.0,65548.0,0.66705396]
[1727595394910,0.112,65549.0,65548.0,0.30625396]
[1727595395311,0.112,65549.0,65548.0,0.66705396]
[1727595395914,0.112,65549.0,65548.0,0.62138109]
[1727595396115,0.112,65549.0,65548.0,0.66702771]
[1727595396315,0.112,65549.0,65548.0,0.62138109]
[1727595396715,0.112,65549.0,65548.0,0.26058109]
[1727595396909,0.112,65549.0,65548.0,0.62138109]
[1727595397718,0.112,65549.0,65548.0,0.26058109]
[1727595397922,0.112,65549.0,65548.0,0.62138109]
[1727595398418,0.112,65549.0,65548.0,0.26058109]
[1727595398623,0.112,65549.0,65548.0,0.62138109]
[1727595398822,0.112,65549.0,65548.0,0.6670437]
[1727595400016,0.112,65549.0,65548.0,0.62138109]
[1727595403419,0.112,65549.0,65548.0,0.68230859]
[1727595404323,0.112,65549.0,65548.0,0.32150859]
[1727595404631,0.112,65549.0,65548.0,0.68230859]
[1727595406122,0.112,65549.0,65548.0,0.32150859]
[1727595406320,0.112,65549.0,65548.0,0.68230859]
[1727595406919,0.112,65549.0,65548.0,0.62138109]
[1727595410332,0.112,65549.0,65548.0,0.78733772]
[1727595410835,0.112,65549.0,65548.0,0.69754213]
[1727595411133,0.112,65549.0,65548.0,0.78736914]
[1727595411321,0.112,65549.0,65548.0,0.7112081]
[1727595411527,0.112,65549.0,65548.0,0.78747323]
[1727595411726,0.112,65549.0,65548.0,0.7112081]
[1727595412129,0.112,65549.0,65548.0,0.7112344]
[1727595413434,0.112,65549.0,65548.0,0.78749996]
[1727595413932,0.112,65549.0,65548.0,0.7112344]
[1727595414934,0.112,65549.0,65548.0,0.907498]
[1727595415134,0.112,65549.0,65548.0,0.90749823]
[1727595416130,0.112,65549.0,65548.0,0.8312344]
[1727595416529,0.112,65549.0,65548.0,0.90749887]
[1727595417439,0.112,65549.0,65548.0,0.8312344]
[1727595418530,0.112,65549.0,65548.0,0.90749771]
[1727595419135,0.112,65549.0,65548.0,1.29749771]
[1727595421938,0.112,65549.0,65548.0,1.13138109]
[1727595424531,0.112,65549.0,65548.0,0.62138109]
[1727595424841,0.112,65549.0,65548.0,0.74138109]
[1727595429043,0.0036,65556.0,65548.0,0.81950015]
[1727595429250,0.3608,65567.0,65559.0,0.076255]
[1727595429251,0.0036,65560.0,65559.0,0.076255]
[1727595429541,0.108544,65569.0,65562.0,0.076251]
[1727595429845,0.208544,65569.0,65568.0,0.04573739]